bitfinex-derivatives/quotes_SOLF0:USTF0_20240905
["timestamp","ask_amount","ask_price","bid_price","bid_amount"]
[1725545390260,0.04927879,134.91,134.88,0.05608033]
[1725545390958,0.04927879,134.91,134.9,3.7063]
[1725545391655,0.04927879,134.91,134.88,0.05608033]
[1725545391656,0.04927879,134.91,134.89,3.7068]
[1725545393566,0.04927879,134.91,134.9,3.7066]
[1725545396958,5.3549,134.99,134.95,3.7049]
[1725545397155,5.3549,134.99,134.91,28.44]
[1725545398068,0.05205645,134.96,134.94,0.05371598]
[1725545399060,0.05205645,134.96,134.95,3.7052]
[1725545400365,0.05205645,134.96,134.95,32.1452]
[1725545400667,0.05205645,134.96,134.95,3.7052]
[1725545402368,0.05205645,134.96,134.95,32.1452]
[1725545402566,1609.58467,135.02,135.01,3.7036]
[1725545402771,1609.58467,135.02,134.96,28.44]
[1725545402963,1609.58467,135.02,134.99,3.7039]
[1725545403369,1609.58467,135.02,134.96,28.44]
[1725545403667,0.05466545,135.0,134.98,0.05011111]
[1725545403970,3.75500577,134.99,134.9,28.44]
[1725545404171,2.8009,134.99,134.9,28.44]
[1725545404476,3.78390183,134.98,134.9,32.17574173]
[1725545404675,3.78390183,134.98,134.94,3.7054]
[1725545404868,6.45930183,134.98,134.9,32.17574173]
[1725545405069,6.45930183,134.98,134.93,0.05674546]
[1725545405070,0.05112103,134.95,134.93,0.05674546]
[1725545405368,0.05112103,134.95,134.94,3.7055]
[1725545405579,0.05112103,134.95,134.93,0.05674546]
[1725545405773,0.05112103,134.95,134.93,3.76244546]
[1725545405962,0.05112103,134.95,134.93,0.05674546]
[1725545406377,0.05112103,134.95,134.94,3.7055]
[1725545406669,0.05112103,134.95,134.93,0.05674546]
[1725545408174,28.49112103,134.95,134.82,28.44]
[1725545408469,32.1462,134.92,134.86,3.7077]
[1725545408766,28.44,134.92,134.82,28.44]
[1725545408969,29.44,134.94,134.89,3.7067]
[1725545409276,0.05554262,134.93,134.9,0.04745007]
[1725545409678,2.81914262,134.93,134.9,0.04745007]
[1725545410580,0.05554262,134.93,134.9,0.04745007]
[1725545411171,0.05554262,134.93,134.92,3.706]
[1725545413079,0.05554262,134.93,134.9,0.04745007]
[1725545413478,0.05554262,134.93,134.91,3.7061]
[1725545413780,0.05554262,134.93,134.9,0.04745007]
[1725545414477,0.05554262,134.93,134.92,3.706]
[1725545414877,0.05554262,134.93,134.91,3.7062]
[1725545415376,0.05554262,134.93,134.9,0.04745007]
[1725545415983,0.05554262,134.93,134.9,3.75395007]
[1725545416482,0.05554262,134.93,134.9,0.04745007]
[1725545417174,0.05554262,134.93,134.8,5.5876]
[1725545417175,28.44,134.92,134.82,28.44]
[1725545417380,28.44,134.89,134.81,2.5909]
[1725545417589,2.8149,134.91,134.79,3.77574455]
[1725545417590,28.44,134.87,134.79,3.77574455]
[1725545417780,28.44,134.87,134.77,28.44]
[1725545417981,28.44,134.87,134.79,2.37378726]
[1725545418179,28.44,134.87,134.82,3.7649561]
[1725545418378,0.05177251,134.84,134.82,3.7649561]
[1725545418680,0.05177251,134.84,134.82,0.0563561]
[1725545419479,0.05177251,134.84,134.82,3.7650561]
[1725545419683,0.05177251,134.84,134.82,0.0563561]
[1725545420582,0.05177251,134.84,134.75,5.3781]
[1725545420779,31.2549,134.85,134.75,5.3781]
[1725545421086,31.2549,134.85,134.76,3.62621467]
[1725545421283,3.7083,134.84,134.76,3.62621467]
[1725545421673,31.2549,134.85,134.79,0.05291769]
[1725545421674,0.05230488,134.81,134.79,0.05291769]
[1725545422679,3.76150488,134.81,134.79,0.05291769]
[1725545422981,28.44,134.8,134.76,3.7104]
[1725545423185,32.1499,134.78,134.73,3.7111]
[1725545423380,3.70166883,134.77,134.71,3.68200081]
[1725545423582,28.44,134.78,134.68,31.0684]
[1725545423887,28.44,134.8,134.76,3.7102]
[1725545424185,0.04957761,134.79,134.77,0.05426258]
[1725545424576,3.73120733,134.79,134.77,0.05426258]
[1725545424975,28.44,134.78,134.75,3.7106]
[1725545425178,28.44,134.78,134.71,3.79518467]
[1725545425379,28.44,134.76,134.68,2.6284]
[1725545425583,28.44,134.76,134.72,3.7114]
[1725545425981,0.04863907,134.75,134.73,0.03044433]
[1725545426173,0.04863907,134.75,134.74,3.711]
[1725545429278,0.04863907,134.75,134.73,0.03044433]
[1725545430277,0.04863907,134.75,134.67,28.44]
[1725545430880,0.04863907,134.75,134.71,3.7116]
[1725545431883,2.63373907,134.75,134.67,28.44]
[1725545432482,2.63373907,134.75,134.72,3.7115]
[1725545433684,2.63373907,134.75,134.67,28.44]
[1725545434486,0.04863907,134.75,134.73,3.7111]
[1725545435285,0.04863907,134.75,134.74,3.711]
[1725545435789,28.48863907,134.75,134.64,36.5587]
[1725545435983,0.05114005,134.71,134.7,3.7119]
[1725545436183,0.05467541,134.72,134.7,3.7119]
[1725545436495,0.05467541,134.72,134.68,3.7125]
[1725545436790,28.44,134.71,134.64,2.8024]
[1725545436983,0.05179296,134.69,134.66,3.713]
[1725545438290,28.44,134.67,134.59,2.7331]
[1725545438487,28.44,134.67,134.59,6.35336726]
[1725545438488,0.05598443,134.64,134.59,6.35336726]
[1725545438882,0.05598443,134.64,134.59,2.7331]
[1725545440290,0.05598443,134.64,134.57,3.64635958]
[1725545440485,28.44,134.63,134.54,28.44]
[1725545440688,0.04763536,134.6,134.54,28.44]
[1725545441090,0.04763536,134.6,134.55,3.76002971]
[1725545441286,0.04763536,134.6,134.53,5.4209]
[1725545441694,0.04763536,134.6,134.53,33.8609]
[1725545442187,0.04763536,134.6,134.53,37.60170404]
[1725545442590,28.44,134.67,134.57,28.44]
[1725545442788,2.676,134.68,134.59,28.44]
[1725545442986,2.676,134.68,134.6,3.79579401]
[1725545443192,2.676,134.68,134.58,2.5541]
[1725545443391,5.3896,134.69,134.61,28.44]
[1725545443592,5.3896,134.69,134.62,3.76829902]
[1725545443793,0.05562453,134.67,134.65,3.7134]
[1725545444294,0.05562453,134.67,134.64,0.04763536]
[1725545444494,28.44,134.66,134.64,0.04763536]
[1725545444693,0.05562453,134.67,134.64,0.04763536]
[1725545446793,0.05562453,134.67,134.64,3.76113536]
[1725545448796,0.05562453,134.67,134.64,0.04763536]
[1725545449294,28.44,134.66,134.64,0.04763536]
[1725545451494,0.05562453,134.67,134.65,3.7135]
[1725545451697,0.05562453,134.67,134.64,0.04763536]
[1725545452093,28.44,134.66,134.64,0.04763536]
[1725545452700,3.7139,134.64,134.55,2.7917]
[1725545452893,28.44,134.62,134.55,6.4797618]
[1725545453093,3.72372037,134.61,134.58,3.7153]
[1725545453492,28.44,134.62,134.54,107.23772792]
[1725545453694,28.49207127,134.59,134.52,2.5773]
[1725545453896,32.28488012,134.59,134.52,6.2798481]
[1725545454098,32.28488012,134.59,134.52,2.5773]
[1725545454298,32.28488012,134.59,134.5,2.6562]
[1725545454499,0.04784994,134.56,134.5,2.6562]
[1725545455502,28.44,134.55,134.52,3.7168]
[1725545455703,28.44,134.55,134.5,2.6562]
[1725545456498,28.44,134.55,134.52,3.7169]
[1725545456800,28.44,134.55,134.47,2.8112]
[1725545457001,0.04933577,134.52,134.5,3.7174]
[1725545457195,0.04933577,134.52,134.47,2.8112]
[1725545457597,0.04933577,134.52,134.5,3.7174]
[1725545457900,0.04933577,134.52,134.47,2.8112]
[1725545458103,0.04933577,134.52,134.51,3.7173]
[1725545458698,28.44,134.57,134.54,3.7163]
[1725545458999,28.44,134.57,134.48,2.5502]
[1725545459394,28.44,134.57,134.52,3.7169]
[1725545459903,0.05556674,134.56,134.53,3.76464375]
[1725545460299,28.44,134.55,134.53,0.04784375]
[1725545461103,3.7165,134.54,134.53,0.04784375]
[1725545461715,31.2536,134.55,134.53,0.04784375]
[1725545462099,0.05556674,134.56,134.53,0.04784375]
[1725545462596,28.44,134.55,134.53,0.04784375]
[1725545462994,3.7166,134.54,134.5,3.7176]
[1725545463200,28.44,134.53,134.46,2.7388]
[1725545463807,28.44,134.5,134.42,2.6423]
[1725545464106,0.05410051,134.47,134.42,6.38644454]
[1725545464306,28.44,134.44,134.4,2.5489]
[1725545464503,0.0515133,134.43,134.4,2.5489]
[1725545465198,0.0515133,134.43,134.41,3.7201]
[1725545465600,0.0515133,134.43,134.39,3.65459009]
[1725545465800,0.0515133,134.43,134.36,30.9889]
[1725545466106,0.0515133,134.43,134.42,3.7198]
[1725545467400,0.0515133,134.43,134.36,6.22432032]
[1725545468105,0.0515133,134.43,134.4,3.7203]
[1725545468298,0.0515133,134.43,134.36,6.22432032]
[1725545468900,0.0515133,134.43,134.28,238.08741936]
[1725545468901,28.44,134.4,134.34,3.7219]
[1725545469101,3.77435556,134.43,134.34,3.7219]
[1725545469102,28.48880345,134.38,134.34,3.7219]
[1725545469298,28.48880345,134.38,134.29,2.7159]
[1725545469506,0.05353294,134.35,134.29,6.41009642]
[1725545469698,0.05353294,134.35,134.29,2.7159]
[1725545470009,0.05353294,134.35,134.3,2.547]
[1725545470207,28.44,134.34,134.29,2.7159]
[1725545470607,0.05353294,134.35,134.31,3.7228]
[1725545471209,28.44,134.32,134.18,3.72321428]
[1725545471413,0.05353294,134.35,134.18,3.72321428]
[1725545471414,0.04844558,134.27,134.22,28.44]
[1725545471709,0.05255319,134.26,134.22,28.44]
[1725545471911,0.05334059,134.25,134.2,7.9783]
[1725545472107,0.050138,134.24,134.2,7.9783]
[1725545472309,0.05068636,134.23,134.2,7.9783]
[1725545472504,0.05396011,134.23,134.2,7.9783]
[1725545472704,0.05396011,134.23,134.22,3.7254]
[1725545473101,0.05396011,134.23,134.2,7.9783]
[1725545473303,0.05396011,134.23,134.18,3.72321428]
[1725545473608,0.05396011,134.23,134.16,5.4645]
[1725545474507,0.05396011,134.23,134.21,3.7256]
[1725545474708,0.05396011,134.23,134.17,28.44]
[1725545475405,28.44,134.3,134.19,28.44]
[1725545475813,28.44,134.3,134.25,3.7243]
[1725545476011,28.44,134.3,134.19,28.44]
[1725545476216,0.05115438,134.26,134.23,0.04919141]
[1725545476406,0.05115438,134.26,134.24,3.7246]
[1725545476814,0.05115438,134.26,134.23,0.04919141]
[1725545478009,28.44,134.24,134.23,0.04919141]
[1725545478204,28.44,134.24,134.16,5.4645]
[1725545478509,28.44,134.24,134.16,33.9045]
[1725545478911,28.44,134.24,134.19,3.7261]
[1725545479105,28.44,134.26,134.16,33.9045]
[1725545479514,2.6753,134.38,134.23,28.44]
[1725545479722,0.04870571,134.3,134.24,6.38688568]
[1725545480013,0.04870571,134.3,134.26,3.724]
[1725545480714,0.04870571,134.3,134.27,3.7237]
[1725545481112,0.04870571,134.3,134.24,2.7342]
[1725545481419,0.04870571,134.3,134.24,31.1742]
[1725545481611,0.04870571,134.3,134.25,3.7243]
[1725545481817,0.04870571,134.3,134.24,2.7342]
[1725545482120,34.31,134.27,134.15,38.04613282]
[1725545482320,34.31,134.27,134.22,3.7253]
[1725545482518,0.04711091,134.26,134.16,8.1176]
[1725545482722,0.0475127,134.22,134.21,3.7256]
[1725545482912,0.05262385,134.23,134.21,3.7256]
[1725545483319,0.05262385,134.23,134.16,8.1176]
[1725545483516,34.31,134.21,134.13,100.28746912]
[1725545483818,3.71135806,134.26,134.13,100.28746912]
[1725545483819,0.05698663,134.18,134.17,3.7268]
[1725545484124,0.05405009,134.19,134.13,100.28746912]
[1725545484820,0.05405009,134.19,134.16,3.727]
[1725545485017,0.05405009,134.19,134.13,100.28746912]
[1725545485414,0.05405009,134.19,134.11,3.75782953]
[1725545485621,0.05405009,134.19,134.09,7.9738]
[1725545485821,0.04789158,134.15,134.09,7.9738]
[1725545486020,0.04789158,134.15,134.14,3.7275]
[1725545486619,0.04789158,134.15,134.09,7.9738]
[1725545487221,0.04789158,134.15,134.14,3.7276]
[1725545487527,0.04789158,134.15,134.1,3.76938562]
[1725545487823,0.04789158,134.15,134.09,7.9738]
[1725545488319,0.04789158,134.15,134.1,34.31]
[1725545488522,3.5478,134.22,134.14,0.05185441]
[1725545488826,3.5478,134.22,134.12,34.31]
[1725545489326,34.31,134.2,134.1,3.80964807]
[1725545489528,0.05365286,134.16,134.14,0.05102888]
[1725545489725,0.05160484,134.16,134.14,0.05225334]
[1725545490724,3.77870484,134.16,134.14,0.05225334]
[1725545490924,0.05160484,134.16,134.14,0.05225334]
[1725545492529,0.05160484,134.16,134.15,3.7273]
[1725545493827,39.4943,134.25,134.14,34.31]
[1725545494124,34.31,134.23,134.15,2.7227]
[1725545494326,34.31,134.23,134.16,3.7269]
[1725545494731,0.0556851,134.21,134.18,0.05098568]
[1725545495127,34.3656851,134.21,134.18,0.05098568]
[1725545495937,0.0556851,134.21,134.18,0.05098568]
[1725545496424,0.0556851,134.21,134.18,3.77738568]
[1725545496620,0.0556851,134.21,134.18,0.05098568]
[1725545497027,0.0556851,134.21,134.18,3.77728568]
[1725545497332,0.0556851,134.21,134.18,0.05098568]
[1725545498831,0.0556851,134.21,134.19,3.726]
[1725545499032,0.0556851,134.21,134.18,0.05098568]
[1725545499334,34.31,134.2,134.18,0.05098568]
[1725545500632,0.0556851,134.21,134.18,0.05098568]
[1725545501023,0.0556851,134.21,134.18,3.77748568]
[1725545501334,0.0556851,134.21,134.18,0.05098568]
[1725545501530,0.0556851,134.21,134.2,3.7259]
[1725545502030,0.0556851,134.21,134.18,0.05098568]
[1725545502226,34.31,134.2,134.18,0.05098568]
[1725545502434,7.44192109,134.19,134.07,34.31]
[1725545502729,34.31,134.17,134.1,2.7165]
[1725545503137,34.31,134.17,134.07,34.31]
[1725545503138,34.31,134.15,134.06,2.7311]
[1725545503333,34.31,134.15,134.04,34.31]
[1725545503334,34.31,134.11,134.04,2.5932]
[1725545503532,0.04762419,134.09,134.06,0.05484616]
[1725545503926,28.65,134.07,134.06,0.05484616]
[1725545504134,28.65,134.07,133.95,2.5932]
[1725545504332,28.65,134.05,133.95,2.5932]
[1725545504727,28.65,134.03,133.95,2.5932]
[1725545504929,2.8214,134.06,133.97,28.65]
[1725545505130,28.65,134.1,133.99,28.65]
[1725545505340,28.65,134.12,134.01,28.65]
[1725545505538,28.65,134.12,134.02,5.5451]
[1725545505539,0.0478838,134.06,134.02,5.5451]
[1725545505830,28.65,134.14,134.06,0.05064163]
[1725545506038,37.0309,134.16,134.04,34.34]
[1725545506540,37.0309,134.16,134.04,38.11395778]
[1725545506833,37.0309,134.16,134.1,3.7287]
[1725545506834,0.05144203,134.11,134.1,3.7287]
[1725545507025,34.34,134.18,134.09,0.04733478]
[1725545507230,34.34,134.18,134.09,3.65789081]
[1725545507429,34.34,134.18,134.07,34.34]
[1725545507627,34.34,134.16,134.08,3.76454355]
[1725545507829,34.34,134.16,134.04,34.34]
[1725545508131,0.05260756,134.11,134.09,0.05699608]
[1725545508334,0.05052627,134.11,134.09,0.05699608]
[1725545508733,0.05052627,134.11,134.1,3.7287]
[1725545509329,8.1897,134.17,134.09,34.39699608]
[1725545509829,2.7467,134.17,134.09,34.39699608]
[1725545510233,2.7467,134.17,134.13,3.7278]
[1725545510434,0.0571835,134.16,134.14,0.05438212]
[1725545511836,1609.58467,134.26,134.15,34.34]
[1725545512042,2.5734,134.24,134.15,34.34]
[1725545512341,2.5734,134.24,134.13,34.34]
[1725545512549,2.5734,134.24,134.11,34.34]
[1725545512550,34.34,134.23,134.11,34.34]
[1725545512838,0.05600621,134.18,134.16,0.05318834]
[1725545513037,0.05038666,134.18,134.16,0.05318834]
[1725545513737,34.34,134.17,133.91,227.0]
[1725545513943,5.352,134.16,134.06,34.34]
[1725545514139,5.352,134.16,134.07,2.7613]
[1725545514635,5.352,134.16,134.08,37.1053]
[1725545514636,2.5734,134.16,134.08,37.1053]
[1725545514835,0.05731579,134.13,134.11,0.05367958]
[1725545515638,0.05731579,134.13,134.12,3.728]
[1725545515845,0.05731579,134.13,134.11,0.05367958]
[1725545516040,0.05731579,134.13,134.12,3.7281]
[1725545518041,0.05731579,134.13,134.11,3.78197958]
[1725545518739,0.05731579,134.13,134.12,3.7281]
[1725545520436,0.05731579,134.13,134.11,3.78197958]
[1725545520642,0.05731579,134.13,134.11,0.05367958]
[1725545521246,0.05731579,134.13,134.03,2.8182]
[1725545521247,38.12531579,134.13,134.03,5.5232]
[1725545521434,34.34,134.13,134.06,3.7296]
[1725545521935,34.34,134.13,134.07,3.7294]
[1725545522140,34.34,134.13,134.03,2.8182]
[1725545522339,0.05688889,134.09,134.07,0.04802643]
[1725545522545,0.05383129,134.09,134.07,0.04802643]
[1725545523149,0.05383129,134.09,134.01,2.5461]
[1725545523347,38.12283129,134.09,134.01,2.5461]
[1725545523547,38.12283129,134.09,134.03,3.7305]
[1725545523852,38.12283129,134.09,134.01,2.5461]
[1725545524049,34.34,134.07,133.94,34.34]
[1725545524346,0.05625695,134.02,133.99,0.05227736]
[1725545524547,0.05528099,134.02,133.99,0.05252913]
[1725545524937,6.56998099,134.02,133.99,0.05252913]
[1725545525137,2.83888099,134.02,133.99,0.05252913]
[1725545525342,3.7312,134.01,133.99,0.05252913]
[1725545525548,2.83888099,134.02,133.99,0.05252913]
[1725545526154,0.05528099,134.02,133.99,0.05252913]
[1725545526854,0.05528099,134.02,134.0,3.7313]
[1725545527047,0.05528099,134.02,133.99,0.05252913]
[1725545527249,0.05528099,134.02,134.01,3.7312]
[1725545527457,1.0,134.08,133.99,32.36811884]
[1725545527649,1.0,134.08,133.99,28.67]
[1725545528054,28.67,134.09,134.01,28.67]
[1725545528352,28.67,134.09,134.05,3.7299]
[1725545528552,0.05586175,134.08,134.06,0.05432831]
[1725545528749,28.67,134.07,133.97,28.67]
[1725545528949,28.67,134.05,133.95,28.67]
[1725545529159,28.67,134.05,133.94,2.7893]
[1725545529160,28.67,134.03,133.94,2.7893]
[1725545529351,28.67,134.03,133.98,3.7319]
[1725545529962,28.67,134.01,133.99,0.04783736]
[1725545530159,2.8106,134.0,133.99,0.05124497]
[1725545530355,2.8106,134.0,133.93,3.64300287]
[1725545530356,6.5424,134.0,133.93,3.7334]
[1725545530656,6.5424,134.0,133.9,5.3839]
[1725545530657,2.8106,134.0,133.91,28.67]
[1725545531157,31.4806,134.0,133.91,28.67]
[1725545531551,0.05240697,133.97,133.94,3.7329]
[1725545531751,0.05240697,133.97,133.91,28.67]
[1725545531953,0.05240697,133.97,133.91,34.41]
[1725545532347,0.05240697,133.97,133.9,5.4974]
[1725545532955,0.05240697,133.97,133.9,8.1078]
[1725545533148,0.05240697,133.97,133.9,2.6104]
[1725545533756,34.46240697,133.97,133.88,3.80365808]
[1725545534054,34.41,133.92,133.79,3.71501962]
[1725545534254,34.41,133.92,133.81,34.41]
[1725545534255,0.05062583,133.89,133.81,34.41]
[1725545534456,0.05062583,133.89,133.83,34.41]
[1725545534759,0.05062583,133.89,133.8,7.8925]
[1725545535060,41.01530194,133.93,133.81,34.41]
[1725545535061,0.05161654,133.86,133.81,34.41]
[1725545535254,0.05161654,133.86,133.8,2.6104]
[1725545535557,34.41,133.96,133.85,34.41]
[1725545536159,3.7332,133.94,133.85,34.41]
[1725545536366,34.41,133.94,133.82,5.3217]
[1725545536653,34.41,133.91,133.82,5.3217]
[1725545536857,0.05209018,133.89,133.87,0.05076424]
[1725545538553,0.05209018,133.89,133.88,3.7348]
[1725545538752,34.41,133.96,133.87,3.68837765]
[1725545539160,34.41,133.98,133.86,34.41]
[1725545539462,5.4996,133.99,133.9,34.41]
[1725545539656,2.702,133.99,133.9,38.14730206]
[1725545539857,0.0505853,133.96,133.93,0.05535833]
[1725545540058,0.05009197,133.96,133.93,0.05260345]
[1725545540258,0.05009197,133.96,133.95,3.7326]
[1725545540465,0.05009197,133.96,133.93,0.05260345]
[1725545540466,34.41,134.04,133.93,34.41]
[1725545541271,2.702,134.05,133.93,34.41]
[1725545541563,0.04848216,134.0,133.98,0.05541603]
[1725545541760,0.05499967,134.0,133.98,0.05541603]
[1725545542661,1605.79705397,133.96,133.93,34.41]
[1725545543163,1605.79705397,133.96,133.91,5.4435]
[1725545543164,1590.91485397,133.96,133.95,38.1429]
[1725545543363,1590.46545397,133.96,133.95,38.1429]
[1725545543960,1316.28545397,133.96,133.95,38.1429]
[1725545544167,1316.28545397,133.96,133.95,41.96660503]
[1725545544666,1316.28545397,133.96,133.95,7.55660503]
[1725545545258,1316.28545397,133.96,133.94,0.0481323]
[1725545545761,1316.28545397,133.96,133.95,3.7329]
[1725545546161,1316.28545397,133.96,133.94,0.0481323]
[1725545546363,1316.28545397,133.96,133.95,3.7329]
[1725545548968,1316.28545397,133.96,133.95,38.1429]
[1725545549356,1101.71545397,133.96,133.95,38.1429]
[1725545549761,1101.71545397,133.96,133.95,3.7329]
[1725545550164,1101.71545397,133.96,133.95,38.1429]
[1725545550370,1034.44545397,133.96,133.95,38.1429]
[1725545550670,1026.44545397,133.96,133.95,38.1429]
[1725545550869,629.06381265,133.96,133.95,38.1429]
[1725545551067,629.06381265,133.96,133.95,41.86425552]
[1725545551370,622.48391265,133.96,133.95,41.86425552]
[1725545551569,615.28961265,133.96,133.95,41.86425552]
[1725545551766,608.13041265,133.96,133.95,41.86425552]
[1725545551967,387.00151265,133.96,133.95,41.86425552]
[1725545552163,382.64791265,133.96,133.95,41.86425552]
[1725545552363,371.63961265,133.96,133.95,41.86425552]
[1725545552969,342.94291266,133.96,133.95,45.6087]
[1725545553273,246.40131266,133.96,133.95,49.34760425]
[1725545553570,219.60231266,133.96,133.95,45.6087]
[1725545553970,204.05471266,133.96,133.95,45.6087]
[1725545554175,174.99031266,133.96,133.95,45.6087]
[1725545554367,163.33911266,133.96,133.95,49.24800458]
[1725545554876,2.6094,134.13,133.95,72.63357233]
[1725545555073,2.6094,134.13,134.04,34.41]
[1725545555375,34.41,134.06,133.96,3.7325]
[1725545555570,99.05720295,134.13,133.86,34.41]
[1725545555762,102.78911422,134.13,133.92,34.41]
[1725545555966,34.41,134.02,133.92,38.10535681]
[1725545556264,0.05632209,133.98,133.96,0.05545381]
[1725545557375,34.46632209,133.98,133.91,1.3713208]
[1725545557873,0.05632209,133.98,133.91,1.3713208]
[1725545558375,0.05632209,133.98,133.93,0.05245642]
[1725545560364,0.05632209,133.98,133.93,34.46245642]
[1725545561670,0.05632209,133.98,133.95,3.7328]
[1725545561869,0.05632209,133.98,133.93,34.46245642]
[1725545562174,0.05632209,133.98,133.93,0.05245642]
[1725545563472,0.05632209,133.98,133.95,34.41]
[1725545563771,0.05632209,133.98,133.97,3.7323]
[1725545563971,0.00652209,133.98,133.97,38.1423]
[1725545564474,0.00652209,133.98,133.97,41.89099383]
[1725545566077,0.00652209,133.98,133.97,7.48099383]
[1725545566281,0.00652209,133.98,133.97,3.74869383]
[1725545566481,0.00652209,133.98,133.96,0.05595767]
[1725545569282,0.00652209,133.98,133.9,3.76138569]
[1725545569592,0.00652209,133.98,133.89,34.41]
[1725545569892,7.7244,134.0,133.89,38.08273813]
[1725545570292,0.05091812,133.96,133.93,0.05250194]
[1725545571288,0.05091812,133.96,133.93,3.78580194]
[1725545571483,0.05091812,133.96,133.93,0.05250194]
[1725545571893,0.05091812,133.96,133.95,3.7329]
[1725545575091,0.05091812,133.96,133.94,3.7331]
[1725545575290,0.05091812,133.96,133.93,34.46250194]
[1725545575797,0.05091812,133.96,133.95,3.7329]
[1725545577395,0.05091812,133.96,133.93,34.46250194]
[1725545578296,0.05091812,133.96,133.95,3.7329]
[1725545579598,0.05091812,133.96,133.93,0.05250194]
[1725545580595,0.05091812,133.96,133.95,3.7329]
[1725545580995,0.05091812,133.96,133.93,0.05250194]
[1725545582304,0.05091812,133.96,133.95,3.7329]
[1725545582901,0.05091812,133.96,133.93,34.46250194]
[1725545583299,2.5605,134.03,133.94,2.44580603]
[1725545583603,2.5605,134.03,133.97,34.41]
[1725545583902,2.5605,134.03,134.0,3.7314]
[1725545584299,2.61026225,134.03,134.0,0.05482962]
[1725545585801,2.61026225,134.03,133.93,34.41]
[1725545586101,2.61026225,134.03,133.89,11.14183813]
[1725545586102,28.69,134.01,133.89,32.36273813]
[1725545586307,28.69,133.99,133.9,2.44741733]
[1725545586704,0.05576085,133.96,133.93,0.05522886]
[1725545587004,0.04958888,133.96,133.93,0.05043785]
[1725545587805,0.04958888,133.96,133.89,3.67273813]
[1725545588103,0.04958888,133.96,133.87,28.69]
[1725545588301,5.3617,133.96,133.88,2.44823289]
[1725545588697,3.7332,133.94,133.88,2.44823289]
[1725545588906,0.05100024,133.92,133.9,0.03417744]
[1725545589500,0.05100024,133.92,133.88,2.44823289]
[1725545589708,0.05100024,133.92,133.85,28.69]
[1725545590010,0.05100024,133.92,133.86,2.44987656]
[1725545591002,0.05100024,133.92,133.85,3.79881209]
[1725545591202,0.05100024,133.92,133.82,34.44]
[1725545591398,0.05520144,133.88,133.83,2.45240986]
[1725545591800,0.05520144,133.88,133.77,3.74869344]
[1725545591801,0.05520144,133.88,133.84,2.45240986]
[1725545592004,38.14714489,133.94,133.74,0.1062]
[1725545592005,34.44,133.89,133.74,0.1062]
[1725545592212,0.05594045,133.83,133.77,34.44]
[1725545592406,0.05594045,133.83,133.78,2.45408475]
[1725545592610,0.05594045,133.83,133.75,34.44]
[1725545592803,0.05594045,133.83,133.74,3.76988923]
[1725545593109,0.04888456,133.8,133.75,2.45706085]
[1725545593302,0.04888456,133.8,133.75,6.19463465]
[1725545593508,0.04888456,133.8,133.76,2.45706085]
[1725545593807,0.04888456,133.8,133.76,6.19516085]
[1725545594007,0.04888456,133.8,133.76,34.44]
[1725545594203,0.04888456,133.8,133.77,2.45430536]
[1725545594400,0.04888456,133.8,133.78,34.44]
[1725545594706,0.04888456,133.8,133.79,2.45430536]
[1725545594899,0.04888456,133.8,133.76,34.44]
[1725545595099,0.04888456,133.8,133.73,34.44]
[1725545595303,34.44,133.85,133.74,1.37323147]
[1725545595304,0.05093616,133.78,133.74,1.37323147]
[1725545595502,34.44,133.85,133.74,5.07455081]
[1725545595503,0.05434194,133.77,133.74,5.07455081]
[1725545595708,0.05550305,133.77,133.75,3.7384]
[1725545595900,0.05550305,133.77,133.71,34.44]
[1725545596105,0.04913969,133.75,133.71,34.44]
[1725545596303,3.7366,133.82,133.71,34.44]
[1725545596504,0.05014172,133.78,133.71,38.08749828]
[1725545596708,0.05014172,133.78,133.76,3.738]
[1725545596908,0.05014172,133.78,133.76,34.44]
[1725545597412,0.05014172,133.78,133.77,3.7379]
[1725545598209,0.05014172,133.78,133.76,3.7381]
[1725545598407,0.05014172,133.78,133.73,34.44]
[1725545598713,0.05014172,133.78,133.76,3.738]
[1725545598911,0.05014172,133.78,133.73,34.44]
[1725545599616,0.05014172,133.78,133.77,3.7379]